[Event "*** Titled Tuesday Blitz"]
[Site "Chess.com"]
[Date "2020.04.14"]
[Round "4"]
[White "StegariuVlad"]
[Black "Alexander_Moskalenko"]
[Result "0-1"]
[WhiteElo "2592"]
[BlackElo "2954"]
[TimeControl "180+1"]
[EndTime "10:38:03 PDT"]
[Termination "Alexander_Moskalenko won by checkmate"]

1. e4 {[%clk 0:03:00.1]} 1... c6 {[%clk 0:02:41.7]} 2. d4 {[%clk 0:02:59.2]}
2... d5 {[%clk 0:02:42.2]} 3. exd5 {[%clk 0:03:00.1]} 3... cxd5 {[%clk
0:02:41.9]} 4. Bd3 {[%clk 0:03:00.7]} 4... Nf6 {[%clk 0:02:42.8]} 5. h3 {[%clk
0:02:59.7]} 5... Nc6 {[%clk 0:02:43.7]} 6. c3 {[%clk 0:03:00]} 6... g6 {[%clk
0:02:44.6]} 7. Qc2 {[%clk 0:02:59.9]} 7... Bg7 {[%clk 0:02:43.1]} 8. Nf3 {[%clk
0:03:00]} 8... O-O {[%clk 0:02:43.2]} 9. Bf4 {[%clk 0:02:57.8]} 9... Qb6 {[%clk
0:02:34.5]} 10. O-O {[%clk 0:02:56.7]} 10... Ne4 {[%clk 0:02:34.6]} 11. Qb3
{[%clk 0:02:39.6]} 11... Qxb3 {[%clk 0:02:32.9]} 12. axb3 {[%clk 0:02:39.1]}
12... Bd7 {[%clk 0:02:33]} 13. Nbd2 {[%clk 0:02:37.8]} 13... Nxd2 {[%clk
0:02:32.5]} 14. Nxd2 {[%clk 0:02:37.1]} 14... a6 {[%clk 0:02:32.8]} 15. b4
{[%clk 0:02:37.1]} 15... e6 {[%clk 0:02:33.1]} 16. Nb3 {[%clk 0:02:36.8]} 16...
Rad8 {[%clk 0:02:29.1]} 17. Nc5 {[%clk 0:02:20.1]} 17... e5 {[%clk 0:02:22.7]}
18. dxe5 {[%clk 0:02:13.4]} 18... Bxe5 {[%clk 0:02:23.6]} 19. Bxe5 {[%clk
0:02:08.9]} 19... Nxe5 {[%clk 0:02:24.5]} 20. Rad1 {[%clk 0:02:08.1]} 20... Nxd3
{[%clk 0:02:23.6]} 21. Nxd3 {[%clk 0:02:04.8]} 21... d4 {[%clk 0:02:23.7]} 22.
Nc5 {[%clk 0:01:44]} 22... Bb5 {[%clk 0:02:21.6]} 23. Rfe1 {[%clk 0:01:34.9]}
23... dxc3 {[%clk 0:02:21.3]} 24. bxc3 {[%clk 0:01:35.2]} 24... b6 {[%clk
0:02:21.5]} 25. Ne4 {[%clk 0:01:32.4]} 25... Kg7 {[%clk 0:02:20.4]} 26. Nd6
{[%clk 0:01:28.1]} 26... Bc6 {[%clk 0:02:20.2]} 27. Re7 {[%clk 0:01:26.9]} 27...
a5 {[%clk 0:02:17.2]} 28. b5 {[%clk 0:01:24.9]} 28... Bxb5 {[%clk 0:02:16.8]}
29. Rb7 {[%clk 0:01:19.9]} 29... Ba4 {[%clk 0:02:16.8]} 30. Rd4 {[%clk
0:01:17.7]} 30... b5 {[%clk 0:02:14.1]} 31. Nxb5 {[%clk 0:01:14.5]} 31... Bxb5
{[%clk 0:02:14.4]} 32. Rxb5 {[%clk 0:01:14.2]} 32... Rxd4 {[%clk 0:02:14.3]} 33.
cxd4 {[%clk 0:01:13.8]} 33... Ra8 {[%clk 0:02:14.9]} 34. Rb3 {[%clk 0:01:12.6]}
34... a4 {[%clk 0:02:14.2]} 35. Ra3 {[%clk 0:01:12.8]} 35... Kf6 {[%clk
0:02:14.6]} 36. Kf1 {[%clk 0:01:13.3]} 36... Kf5 {[%clk 0:02:15.2]} 37. f3
{[%clk 0:01:11.8]} 37... Ke6 {[%clk 0:02:15.3]} 38. Ke2 {[%clk 0:01:11.9]} 38...
Kd5 {[%clk 0:02:16.2]} 39. Kd3 {[%clk 0:01:12]} 39... g5 {[%clk 0:02:16.1]} 40.
g4 {[%clk 0:01:10.7]} 40... f6 {[%clk 0:02:14]} 41. Ke3 {[%clk 0:00:57.9]} 41...
Kc4 {[%clk 0:02:12.4]} 42. Ke4 {[%clk 0:00:56.7]} 42... Kb4 {[%clk 0:02:12.8]}
43. Ra1 {[%clk 0:00:56.7]} 43... a3 {[%clk 0:02:13.3]} 44. d5 {[%clk 0:00:57.1]}
44... a2 {[%clk 0:02:12.2]} 45. d6 {[%clk 0:00:57.4]} 45... Kc5 {[%clk
0:02:10.9]} 46. Kf5 {[%clk 0:00:57.3]} 46... Kxd6 {[%clk 0:02:06.7]} 47. Kxf6
{[%clk 0:00:57.6]} 47... h6 {[%clk 0:02:07.6]} 48. Kg6 {[%clk 0:00:57.6]} 48...
Ke5 {[%clk 0:02:08.1]} 49. Kxh6 {[%clk 0:00:54.4]} 49... Kf4 {[%clk 0:02:08.6]}
50. Kg6 {[%clk 0:00:54.5]} 50... Ra6+ {[%clk 0:02:07.6]} 51. Kh5 {[%clk
0:00:54.1]} 51... Ra8 {[%clk 0:01:59.1]} 52. Kg6 {[%clk 0:00:53.3]} 52... Ra5
{[%clk 0:01:58.3]} 53. Kh5 {[%clk 0:00:47.9]} 53... Ra6 {[%clk 0:01:57.6]} 54.
h4 {[%clk 0:00:47.3]} 54... gxh4 {[%clk 0:01:57.9]} 55. Kxh4 {[%clk 0:00:47.5]}
55... Rh6# {[%clk 0:01:56.7]} 0-1

[Event "*** Titled Tuesday Blitz"]
[Site "Chess.com"]
[Date "2020.04.14"]
[Round "4"]
[White "Shield12"]
[Black "albi1999"]
[Result "1-0"]
[WhiteElo "2873"]
[BlackElo "2584"]
[TimeControl "180+1"]
[EndTime "10:38:22 PDT"]
[Termination "Shield12 won by resignation"]

1. e4 {[%clk 0:03:00.9]} 1... c6 {[%clk 0:02:59.7]} 2. d4 {[%clk 0:03:01.2]}
2... d5 {[%clk 0:03:00.6]} 3. exd5 {[%clk 0:03:02.1]} 3... cxd5 {[%clk
0:03:01.5]} 4. Bd3 {[%clk 0:03:02.5]} 4... Nc6 {[%clk 0:03:01.6]} 5. c3 {[%clk
0:03:02.9]} 5... g6 {[%clk 0:03:00.5]} 6. Bf4 {[%clk 0:03:01.4]} 6... Bf5 {[%clk
0:02:56.3]} 7. Be2 {[%clk 0:02:57.3]} 7... Bg7 {[%clk 0:02:52.8]} 8. Nf3 {[%clk
0:02:57.2]} 8... Nf6 {[%clk 0:02:50.2]} 9. O-O {[%clk 0:02:55.5]} 9... O-O
{[%clk 0:02:46.8]} 10. h3 {[%clk 0:02:55.4]} 10... Ne4 {[%clk 0:02:45.4]} 11.
Nbd2 {[%clk 0:02:54.7]} 11... Re8 {[%clk 0:02:40]} 12. Re1 {[%clk 0:02:54.4]}
12... Nd6 {[%clk 0:02:23.7]} 13. Nf1 {[%clk 0:02:51.4]} 13... Qb6 {[%clk
0:01:58.5]} 14. Qb3 {[%clk 0:02:49.7]} 14... Rad8 {[%clk 0:01:57.8]} 15. Ne3
{[%clk 0:02:49.2]} 15... Be4 {[%clk 0:01:42.3]} 16. Nd2 {[%clk 0:02:41.5]} 16...
e5 {[%clk 0:01:32.5]} 17. dxe5 {[%clk 0:02:40.6]} 17... Nxe5 {[%clk 0:01:30.8]}
18. Nxe4 {[%clk 0:02:30.5]} 18... Nxe4 {[%clk 0:01:26.8]} 19. Qxb6 {[%clk
0:02:24.8]} 19... axb6 {[%clk 0:01:25.4]} 20. Rad1 {[%clk 0:02:24.8]} 20... d4
{[%clk 0:01:13.2]} 21. cxd4 {[%clk 0:02:06.6]} 21... Nc6 {[%clk 0:01:12.6]} 22.
d5 {[%clk 0:02:06.5]} 22... Nd4 {[%clk 0:01:08.9]} 23. Bd3 {[%clk 0:02:03.7]}
23... Nc5 {[%clk 0:01:00.1]} 24. Bc7 {[%clk 0:01:58.7]} 24... Nxd3 {[%clk
0:00:51.8]} 25. Rxd3 {[%clk 0:01:57.4]} 25... Ra8 {[%clk 0:00:50.6]} 26. d6
{[%clk 0:01:55.2]} 26... Ne6 {[%clk 0:00:42.1]} 27. Bxb6 {[%clk 0:01:55.1]}
27... Bxb2 {[%clk 0:00:39.9]} 28. d7 {[%clk 0:01:54]} 28... Rf8 {[%clk
0:00:37.8]} 29. Nc4 {[%clk 0:01:52.8]} 29... Bf6 {[%clk 0:00:36.2]} 30. Nd6
{[%clk 0:01:50.5]} 30... Rxa2 {[%clk 0:00:33.8]} 31. Ne8 {[%clk 0:01:28.2]}
31... Bd8 {[%clk 0:00:27.6]} 32. Rxe6 {[%clk 0:01:25.9]} 32... Ra1+ {[%clk
0:00:23.3]} 33. Kh2 {[%clk 0:01:24.7]} 33... fxe6 {[%clk 0:00:12.3]} 34. Bxd8
{[%clk 0:01:24.3]} 1-0

[Event "*** Titled Tuesday Blitz"]
[Site "Chess.com"]
[Date "2020.04.14"]
[Round "4"]
[White "jmduque"]
[Black "Renegade_Hitman"]
[Result "1-0"]
[WhiteElo "2378"]
[BlackElo "1926"]
[TimeControl "180+1"]
[EndTime "10:38:22 PDT"]
[Termination "jmduque won on time"]

1. b3 {[%clk 0:02:53.6]} 1... e5 {[%clk 0:02:59.1]} 2. Bb2 {[%clk 0:02:54.5]}
2... Nc6 {[%clk 0:02:58.8]} 3. g3 {[%clk 0:02:55.4]} 3... d5 {[%clk 0:02:58.3]}
4. Bg2 {[%clk 0:02:56.3]} 4... Nf6 {[%clk 0:02:58.6]} 5. e3 {[%clk 0:02:57.2]}
5... Be7 {[%clk 0:02:58.4]} 6. Ne2 {[%clk 0:02:58.1]} 6... O-O {[%clk
0:02:58.1]} 7. d3 {[%clk 0:02:59]} 7... Bf5 {[%clk 0:02:56.9]} 8. Nd2 {[%clk
0:02:59.9]} 8... h6 {[%clk 0:02:55.9]} 9. h3 {[%clk 0:03:00.8]} 9... Qd7 {[%clk
0:02:54.2]} 10. a3 {[%clk 0:03:01.3]} 10... Rfe8 {[%clk 0:02:53.2]} 11. b4
{[%clk 0:03:01.8]} 11... Rad8 {[%clk 0:02:52.2]} 12. Nb3 {[%clk 0:03:01.7]}
12... b6 {[%clk 0:02:48]} 13. Qd2 {[%clk 0:03:01.8]} 13... a5 {[%clk 0:02:36.9]}
14. b5 {[%clk 0:03:01.4]} 14... Nb8 {[%clk 0:02:32.7]} 15. Bxe5 {[%clk
0:02:58.8]} 15... Qxb5 {[%clk 0:02:25.8]} 16. Bxc7 {[%clk 0:02:52.9]} 16... Rc8
{[%clk 0:02:08.2]} 17. Ned4 {[%clk 0:02:53.3]} 17... Qd7 {[%clk 0:02:04.4]} 18.
Bxb6 {[%clk 0:02:53.7]} 18... a4 {[%clk 0:02:02.5]} 19. Nc1 {[%clk 0:02:53.6]}
19... Bc5 {[%clk 0:01:48.7]} 20. Bxc5 {[%clk 0:02:53.3]} 20... Rxc5 {[%clk
0:01:47.6]} 21. Nce2 {[%clk 0:02:53.4]} 21... Rec8 {[%clk 0:01:45.1]} 22. Nxf5
{[%clk 0:02:52.6]} 22... Qxf5 {[%clk 0:01:43.4]} 23. Nd4 {[%clk 0:02:52.2]}
23... Qd7 {[%clk 0:01:40.1]} 24. O-O {[%clk 0:02:52.1]} 24... Nc6 {[%clk
0:01:40.4]} 25. Nxc6 {[%clk 0:02:48]} 25... Qxc6 {[%clk 0:01:30.7]} 26. c4
{[%clk 0:02:48.9]} 26... Qa6 {[%clk 0:01:29.2]} 27. cxd5 {[%clk 0:02:45.9]}
27... Rc2 {[%clk 0:01:29.3]} 28. Qd1 {[%clk 0:02:45.1]} 28... R8c3 {[%clk
0:01:18.6]} 29. d4 {[%clk 0:02:44.2]} 29... Qc4 {[%clk 0:01:08.6]} 30. Qf3
{[%clk 0:02:43.3]} 30... Rb3 {[%clk 0:00:52.3]} 31. d6 {[%clk 0:02:42.4]} 31...
Rcc3 {[%clk 0:00:34]} 32. Qa8+ {[%clk 0:02:31.9]} 32... Kh7 {[%clk 0:00:33.1]}
33. Rae1 {[%clk 0:02:18]} 33... Rxa3 {[%clk 0:00:30.1]} 34. e4 {[%clk
0:02:18.1]} 34... Qxd4 {[%clk 0:00:23.9]} 35. e5 {[%clk 0:02:18.1]} 35... Nd7
{[%clk 0:00:05.8]} 36. Be4+ {[%clk 0:02:13.7]} 36... g6 {[%clk 0:00:03.8]} 37.
Kh2 {[%clk 0:02:03.6]} 37... Nxe5 {[%clk 0:00:03.6]} 38. Qf8 {[%clk 0:01:44.8]}
1-0

[Event "*** Titled Tuesday Blitz"]
[Site "Chess.com"]
[Date "2020.04.14"]
[Round "4"]
[White "mitrabhaa"]
[Black "SameerMujumdar"]
[Result "1-0"]
[WhiteElo "2619"]
[BlackElo "2412"]
[TimeControl "180+1"]
[EndTime "10:38:25 PDT"]
[Termination "mitrabhaa won by resignation"]

1. Nf3 {[%clk 0:03:00.9]} 1... Nf6 {[%clk 0:02:58.8]} 2. d4 {[%clk 0:03:00.5]}
2... g6 {[%clk 0:02:59]} 3. g3 {[%clk 0:03:00.8]} 3... Bg7 {[%clk 0:02:59.4]} 4.
Bg2 {[%clk 0:03:01.7]} 4... O-O {[%clk 0:03:00]} 5. O-O {[%clk 0:03:00.1]} 5...
d6 {[%clk 0:03:00.9]} 6. c4 {[%clk 0:02:59.2]} 6... c6 {[%clk 0:03:01]} 7. Nc3
{[%clk 0:02:58.7]} 7... Nbd7 {[%clk 0:02:59.9]} 8. h3 {[%clk 0:02:56.6]} 8...
Qc7 {[%clk 0:02:59.3]} 9. e4 {[%clk 0:02:53.9]} 9... e5 {[%clk 0:02:57.7]} 10.
Be3 {[%clk 0:02:48.8]} 10... exd4 {[%clk 0:02:48.3]} 11. Nxd4 {[%clk 0:02:48]}
11... Nc5 {[%clk 0:02:48]} 12. Qc2 {[%clk 0:02:47.3]} 12... a5 {[%clk
0:02:46.4]} 13. b3 {[%clk 0:02:46.9]} 13... Re8 {[%clk 0:02:39.3]} 14. Rad1
{[%clk 0:02:39.5]} 14... Qe7 {[%clk 0:02:17.6]} 15. Rfe1 {[%clk 0:02:22.9]}
15... Nfd7 {[%clk 0:02:03.1]} 16. f4 {[%clk 0:02:15.1]} 16... Qf8 {[%clk
0:02:00.8]} 17. Bf2 {[%clk 0:02:14.9]} 17... Na6 {[%clk 0:01:57.5]} 18. a3
{[%clk 0:02:14]} 18... Ndc5 {[%clk 0:01:51.2]} 19. Kh2 {[%clk 0:02:13.1]} 19...
Bd7 {[%clk 0:01:49.1]} 20. Qb2 {[%clk 0:02:10.2]} 20... h5 {[%clk 0:01:30]} 21.
Qc2 {[%clk 0:02:02.3]} 21... h4 {[%clk 0:01:29.3]} 22. g4 {[%clk 0:01:59.2]}
22... b5 {[%clk 0:01:00.2]} 23. cxb5 {[%clk 0:01:51.6]} 23... cxb5 {[%clk
0:00:59.9]} 24. Ndxb5 {[%clk 0:01:51.6]} 24... Rab8 {[%clk 0:00:50.9]} 25. Nxd6
{[%clk 0:01:48.6]} 25... Re6 {[%clk 0:00:49]} 26. e5 {[%clk 0:01:45.4]} 26...
Rxb3 {[%clk 0:00:45.4]} 27. Nd5 {[%clk 0:01:41.4]} 27... Rxd6 {[%clk 0:00:40.6]}
28. exd6 {[%clk 0:01:40.7]} 28... Rb2 {[%clk 0:00:40.5]} 29. Qc4 {[%clk
0:01:18]} 29... Rxf2 {[%clk 0:00:40.3]} 30. Re7 {[%clk 0:01:17.5]} 30... Bc6
{[%clk 0:00:35.1]} 31. Rde1 {[%clk 0:01:11.9]} 31... Qd8 {[%clk 0:00:33.4]} 32.
d7 {[%clk 0:01:05.8]} 32... Bxd7 {[%clk 0:00:32.1]} 33. Nf6+ {[%clk 0:01:05.5]}
33... Bxf6 {[%clk 0:00:31.4]} 34. Qxf7+ {[%clk 0:01:03.7]} 1-0

[Event "*** Titled Tuesday Blitz"]
[Site "Chess.com"]
[Date "2020.04.14"]
[Round "4"]
[White "davigator"]
[Black "Peng_Li-Min"]
[Result "0-1"]
[WhiteElo "2358"]
[BlackElo "2636"]
[TimeControl "180+1"]
[EndTime "10:38:28 PDT"]
[Termination "Peng_Li-Min won by checkmate"]

1. e4 {[%clk 0:03:00.9]} 1... d6 {[%clk 0:02:53]} 2. d4 {[%clk 0:02:58.6]} 2...
Nf6 {[%clk 0:02:47.2]} 3. Nc3 {[%clk 0:02:58.9]} 3... Nbd7 {[%clk 0:02:46.7]} 4.
Be3 {[%clk 0:02:54.8]} 4... e5 {[%clk 0:02:43.8]} 5. f3 {[%clk 0:02:54.8]} 5...
Be7 {[%clk 0:02:40]} 6. Qd2 {[%clk 0:02:54.7]} 6... c6 {[%clk 0:02:39.7]} 7.
O-O-O {[%clk 0:02:54.7]} 7... Qc7 {[%clk 0:02:35.5]} 8. Kb1 {[%clk 0:02:54.1]}
8... b5 {[%clk 0:02:19.8]} 9. g4 {[%clk 0:02:53.4]} 9... Nb6 {[%clk 0:02:07.2]}
10. g5 {[%clk 0:02:49.5]} 10... Nfd7 {[%clk 0:02:03.4]} 11. Bd3 {[%clk
0:02:50.1]} 11... b4 {[%clk 0:02:00.1]} 12. Nce2 {[%clk 0:02:49.4]} 12... a5
{[%clk 0:01:59.9]} 13. Ng3 {[%clk 0:02:47.2]} 13... g6 {[%clk 0:01:39.1]} 14. h4
{[%clk 0:02:44]} 14... Bb7 {[%clk 0:01:25.7]} 15. h5 {[%clk 0:02:41.1]} 15...
O-O-O {[%clk 0:01:24.9]} 16. Rc1 {[%clk 0:02:38]} 16... Kb8 {[%clk 0:01:24.4]}
17. c3 {[%clk 0:02:36.2]} 17... d5 {[%clk 0:01:13]} 18. exd5 {[%clk 0:02:24]}
18... Nxd5 {[%clk 0:01:07]} 19. Be4 {[%clk 0:02:19.1]} 19... bxc3 {[%clk
0:01:00]} 20. bxc3 {[%clk 0:02:16.7]} 20... exd4 {[%clk 0:00:49.9]} 21. Bf2
{[%clk 0:02:15.7]} 21... Nxc3+ {[%clk 0:00:48.3]} 22. Ka1 {[%clk 0:02:14.5]}
22... c5 {[%clk 0:00:37.3]} 23. N3e2 {[%clk 0:02:14.3]} 23... Bxe4 {[%clk
0:00:28.7]} 24. fxe4 {[%clk 0:02:09.9]} 24... Nxe4 {[%clk 0:00:29.6]} 25. Qb2+
{[%clk 0:02:06.5]} 25... Qb6 {[%clk 0:00:22.6]} 26. Bg3+ {[%clk 0:02:04.8]}
26... Nxg3 {[%clk 0:00:19.1]} 27. Nxg3 {[%clk 0:02:05.4]} 27... Qxb2+ {[%clk
0:00:19.1]} 28. Kxb2 {[%clk 0:02:04.8]} 28... Bxg5 {[%clk 0:00:18.8]} 29. Nf3
{[%clk 0:02:05.4]} 29... Bf6 {[%clk 0:00:19]} 30. Kb3 {[%clk 0:02:03.1]} 30...
d3 {[%clk 0:00:15.2]} 31. Ne4 {[%clk 0:02:02.6]} 31... Be7 {[%clk 0:00:15.5]}
32. Kc4 {[%clk 0:01:58.7]} 32... Nb6+ {[%clk 0:00:15.4]} 33. Kb5 {[%clk
0:01:58.9]} 33... Ka7 {[%clk 0:00:14.6]} 34. Kxa5 {[%clk 0:01:55.3]} 34... c4
{[%clk 0:00:14.3]} 35. Ne5 {[%clk 0:01:51.2]} 35... Rd5+ {[%clk 0:00:14.5]} 36.
Nc5 {[%clk 0:01:46.4]} 36... Rxc5+ {[%clk 0:00:14.8]} 37. Kb4 {[%clk 0:01:46.7]}
37... Rxe5+ {[%clk 0:00:15.7]} 38. Kc3 {[%clk 0:01:46.2]} 38... Re2 {[%clk
0:00:15.8]} 39. a3 {[%clk 0:01:44.3]} 39... Bf6+ {[%clk 0:00:15.7]} 40. Kb4
{[%clk 0:01:43.8]} 40... Rb2+ {[%clk 0:00:16.2]} 41. Kc5 {[%clk 0:01:44.1]}
41... Rd8 {[%clk 0:00:13.2]} 42. hxg6 {[%clk 0:01:42.7]} 42... hxg6 {[%clk
0:00:13]} 43. Rhf1 {[%clk 0:01:41.9]} 43... Kb7 {[%clk 0:00:09.7]} 44. Rxf6
{[%clk 0:01:40.4]} 44... Rd5# {[%clk 0:00:10.1]} 0-1

[Event "*** Titled Tuesday Blitz"]
[Site "Chess.com"]
[Date "2020.04.14"]
[Round "4"]
[White "LuckSlayeer"]
[Black "kirillshevchenko"]
[Result "0-1"]
[WhiteElo "2580"]
[BlackElo "2864"]
[TimeControl "180+1"]
[EndTime "10:38:31 PDT"]
[Termination "kirillshevchenko won by resignation"]

1. e4 {[%clk 0:02:49.9]} 1... c5 {[%clk 0:02:59.2]} 2. Nf3 {[%clk 0:02:49.7]}
2... d6 {[%clk 0:02:59.6]} 3. d4 {[%clk 0:02:49.8]} 3... cxd4 {[%clk 0:03:00.5]}
4. Nxd4 {[%clk 0:02:50.7]} 4... Nf6 {[%clk 0:03:00.8]} 5. Nc3 {[%clk 0:02:50.6]}
5... a6 {[%clk 0:03:01.4]} 6. Be3 {[%clk 0:02:49.6]} 6... e5 {[%clk 0:03:01.4]}
7. Nb3 {[%clk 0:02:49.8]} 7... Be6 {[%clk 0:03:01.4]} 8. f4 {[%clk 0:02:49.4]}
8... Nc6 {[%clk 0:02:48.7]} 9. f5 {[%clk 0:02:47.8]} 9... Bxb3 {[%clk
0:02:35.3]} 10. axb3 {[%clk 0:02:48.7]} 10... Nb4 {[%clk 0:02:26.9]} 11. Bc4
{[%clk 0:02:10.3]} 11... b5 {[%clk 0:02:01.4]} 12. Bd5 {[%clk 0:02:07.4]} 12...
Rb8 {[%clk 0:01:43.5]} 13. O-O {[%clk 0:01:44.5]} 13... Qc7 {[%clk 0:01:39.2]}
14. Qd2 {[%clk 0:01:22.3]} 14... Be7 {[%clk 0:01:37.5]} 15. Rfc1 {[%clk
0:01:12.4]} 15... O-O {[%clk 0:01:34.7]} 16. Bg5 {[%clk 0:01:03.8]} 16... Nbxd5
{[%clk 0:01:17.2]} 17. exd5 {[%clk 0:00:56.7]} 17... b4 {[%clk 0:01:16.4]} 18.
Bxf6 {[%clk 0:00:25.4]} 18... bxc3 {[%clk 0:01:16.2]} 19. Qxc3 {[%clk
0:00:25.9]} 19... Qb6+ {[%clk 0:01:12.8]} 20. Kh1 {[%clk 0:00:19.7]} 20... Bxf6
{[%clk 0:01:12.7]} 21. Qc6 {[%clk 0:00:20.4]} 21... Rfc8 {[%clk 0:01:10.9]} 22.
Qxb6 {[%clk 0:00:20.7]} 22... Rxb6 {[%clk 0:01:11.8]} 23. c4 {[%clk 0:00:21.3]}
23... Rxb3 {[%clk 0:01:10.9]} 24. Rxa6 {[%clk 0:00:21.6]} 24... Rxb2 {[%clk
0:01:11.1]} 25. h3 {[%clk 0:00:21.4]} 25... Be7 {[%clk 0:01:10.2]} 26. c5 {[%clk
0:00:20.3]} 26... dxc5 {[%clk 0:01:07.3]} 27. d6 {[%clk 0:00:20.7]} 27... Bf6
{[%clk 0:01:05.6]} 28. Rxc5 {[%clk 0:00:19.3]} 28... Rd8 {[%clk 0:01:05.1]} 29.
d7 {[%clk 0:00:19.6]} 29... Rd2 {[%clk 0:01:03.5]} 30. Ra7 {[%clk 0:00:17.2]}
30... R2xd7 {[%clk 0:01:01.9]} 31. Rxd7 {[%clk 0:00:16.7]} 31... Rxd7 {[%clk
0:01:02.8]} 0-1

[Event "*** Titled Tuesday Blitz"]
[Site "Chess.com"]
[Date "2020.04.14"]
[Round "4"]
[White "stanyga"]
[Black "DrBergerBerger"]
[Result "1-0"]
[WhiteElo "2672"]
[BlackElo "2502"]
[TimeControl "180+1"]
[EndTime "10:38:32 PDT"]
[Termination "stanyga won on time"]

1. e4 {[%clk 0:03:00.9]} 1... e6 {[%clk 0:02:59.7]} 2. d4 {[%clk 0:02:59.9]}
2... d5 {[%clk 0:02:58]} 3. e5 {[%clk 0:02:59.5]} 3... c5 {[%clk 0:02:57.7]} 4.
c3 {[%clk 0:03:00.2]} 4... Nc6 {[%clk 0:02:52.5]} 5. Nf3 {[%clk 0:03:00.6]} 5...
Bd7 {[%clk 0:02:51.7]} 6. Be2 {[%clk 0:02:59.4]} 6... Nge7 {[%clk 0:02:50.9]} 7.
O-O {[%clk 0:02:55.3]} 7... Ng6 {[%clk 0:02:49.7]} 8. g3 {[%clk 0:02:49.6]} 8...
Be7 {[%clk 0:02:44.6]} 9. h4 {[%clk 0:02:49.3]} 9... cxd4 {[%clk 0:02:38.3]} 10.
cxd4 {[%clk 0:02:48.7]} 10... O-O {[%clk 0:02:38.7]} 11. h5 {[%clk 0:02:42.6]}
11... Nh8 {[%clk 0:02:38.2]} 12. Nc3 {[%clk 0:02:39.5]} 12... f6 {[%clk
0:02:36.3]} 13. h6 {[%clk 0:02:30.8]} 13... g6 {[%clk 0:02:35]} 14. exf6 {[%clk
0:02:30.9]} 14... Bxf6 {[%clk 0:02:32.8]} 15. Kg2 {[%clk 0:02:27.1]} 15... Nf7
{[%clk 0:02:31.1]} 16. Bf4 {[%clk 0:02:24.8]} 16... Ng5 {[%clk 0:02:24.7]} 17.
Ne5 {[%clk 0:02:13.1]} 17... Bxe5 {[%clk 0:01:24.8]} 18. dxe5 {[%clk 0:02:08.6]}
18... Nf7 {[%clk 0:01:12.3]} 19. Kh2 {[%clk 0:01:24.3]} 19... Nfxe5 {[%clk
0:00:36]} 20. Nxd5 {[%clk 0:01:21.7]} 20... exd5 {[%clk 0:00:28]} 21. Qxd5+
{[%clk 0:01:20.6]} 21... Nf7 {[%clk 0:00:21.7]} 22. Bc4 {[%clk 0:01:17.4]} 22...
Bf5 {[%clk 0:00:10.2]} 23. Qb5 {[%clk 0:01:14]} 23... Nd4 {[%clk 0:00:06.5]} 24.
Qb4 {[%clk 0:01:02.2]} 24... a5 {[%clk 0:00:01.7]} 25. Qc3 {[%clk 0:01:01.1]}
1-0

[Event "*** Titled Tuesday Blitz"]
[Site "Chess.com"]
[Date "2020.04.14"]
[Round "4"]
[White "plumalka"]
[Black "grandcoach"]
[Result "1-0"]
[WhiteElo "2378"]
[BlackElo "1857"]
[TimeControl "180+1"]
[EndTime "10:38:33 PDT"]
[Termination "plumalka won on time"]

1. e4 {[%clk 0:03:00.9]} 1... c5 {[%clk 0:02:59.3]} 2. Nf3 {[%clk 0:03:00.5]}
2... e6 {[%clk 0:02:59]} 3. d4 {[%clk 0:03:00.9]} 3... cxd4 {[%clk 0:02:58.9]}
4. Nxd4 {[%clk 0:03:01]} 4... a6 {[%clk 0:02:59.3]} 5. Bd3 {[%clk 0:02:58.7]}
5... Bc5 {[%clk 0:02:55]} 6. Nb3 {[%clk 0:02:58.1]} 6... Ba7 {[%clk 0:02:54.3]}
7. Qg4 {[%clk 0:02:55.9]} 7... Nf6 {[%clk 0:02:53.1]} 8. Qg3 {[%clk 0:02:50.1]}
8... Nc6 {[%clk 0:02:43.2]} 9. O-O {[%clk 0:02:48.6]} 9... O-O {[%clk
0:02:31.8]} 10. e5 {[%clk 0:02:40.1]} 10... Nh5 {[%clk 0:02:16.5]} 11. Qh3
{[%clk 0:02:27.7]} 11... g6 {[%clk 0:02:12.1]} 12. Re1 {[%clk 0:01:57.9]} 12...
Qc7 {[%clk 0:01:59.1]} 13. g4 {[%clk 0:01:50]} 13... Ng7 {[%clk 0:01:49.8]} 14.
Bf4 {[%clk 0:01:48.8]} 14... f6 {[%clk 0:01:33.5]} 15. Nc3 {[%clk 0:01:33.9]}
15... Bxf2+ {[%clk 0:01:20.2]} 16. Kxf2 {[%clk 0:01:30.2]} 16... fxe5 {[%clk
0:01:20.8]} 17. Kg1 {[%clk 0:01:27.8]} 17... Rxf4 {[%clk 0:01:13.1]} 18. Ne4
{[%clk 0:01:27.3]} 18... Qb6+ {[%clk 0:01:00.9]} 19. Kh1 {[%clk 0:01:23.1]}
19... h5 {[%clk 0:00:11.4]} 20. gxh5 {[%clk 0:01:21.1]} 20... Nxh5 {[%clk
0:00:10.2]} 21. Qg2 {[%clk 0:01:18.6]} 21... Ne7 {[%clk 0:00:08.8]} 22. a4
{[%clk 0:01:09.5]} 22... d5 {[%clk 0:00:08.6]} 23. a5 {[%clk 0:01:08.9]} 23...
Qc7 {[%clk 0:00:05.2]} 24. Ng3 {[%clk 0:01:02.5]} 24... e4 {[%clk 0:00:04.7]}
25. Nxh5 {[%clk 0:01:01.9]} 1-0

[Event "*** Titled Tuesday Blitz"]
[Site "Chess.com"]
[Date "2020.04.14"]
[Round "4"]
[White "KingCrusher275"]
[Black "lokomotiv777"]
[Result "1-0"]
[WhiteElo "2377"]
[BlackElo "2160"]
[TimeControl "180+1"]
[EndTime "10:38:33 PDT"]
[Termination "KingCrusher275 won by checkmate"]

1. d4 {[%clk 0:03:00.9]} 1... d5 {[%clk 0:02:59.3]} 2. c4 {[%clk 0:03:01.1]}
2... c6 {[%clk 0:02:59]} 3. Nf3 {[%clk 0:03:00.6]} 3... Nf6 {[%clk 0:02:58]} 4.
e3 {[%clk 0:03:00.9]} 4... g6 {[%clk 0:02:57.5]} 5. Nc3 {[%clk 0:03:00.4]} 5...
Bg7 {[%clk 0:02:57.2]} 6. Be2 {[%clk 0:03:00.5]} 6... O-O {[%clk 0:02:56.7]} 7.
O-O {[%clk 0:03:00.9]} 7... Bg4 {[%clk 0:02:56]} 8. b3 {[%clk 0:03:01.2]} 8...
a6 {[%clk 0:02:46.8]} 9. Bb2 {[%clk 0:02:59.4]} 9... e6 {[%clk 0:02:44.5]} 10.
Ne5 {[%clk 0:02:53.3]} 10... Bxe2 {[%clk 0:02:43.3]} 11. Qxe2 {[%clk 0:02:52]}
11... Nbd7 {[%clk 0:02:42.2]} 12. f4 {[%clk 0:02:51.3]} 12... Nxe5 {[%clk
0:02:24.1]} 13. fxe5 {[%clk 0:02:49.4]} 13... Nd7 {[%clk 0:02:22.3]} 14. Rad1
{[%clk 0:02:40]} 14... f6 {[%clk 0:02:19.2]} 15. exf6 {[%clk 0:02:31.9]} 15...
Rxf6 {[%clk 0:02:17.3]} 16. Rxf6 {[%clk 0:02:28.4]} 16... Nxf6 {[%clk
0:02:14.7]} 17. e4 {[%clk 0:02:28.7]} 17... dxe4 {[%clk 0:01:32.6]} 18. Nxe4
{[%clk 0:02:27.5]} 18... Nxe4 {[%clk 0:01:33.1]} 19. Qxe4 {[%clk 0:02:26.6]}
19... Qf6 {[%clk 0:01:32.9]} 20. Rf1 {[%clk 0:02:22.8]} 20... Qe7 {[%clk
0:01:24.7]} 21. Re1 {[%clk 0:02:10.2]} 21... Rd8 {[%clk 0:01:00.1]} 22. Ba1
{[%clk 0:01:39.3]} 22... Qd6 {[%clk 0:00:20]} 23. Rd1 {[%clk 0:01:20]} 23... c5
{[%clk 0:00:18.8]} 24. Qxb7 {[%clk 0:01:12.6]} 24... cxd4 {[%clk 0:00:17.7]} 25.
Rf1 {[%clk 0:01:09.8]} 25... e5 {[%clk 0:00:16.2]} 26. Rf7 {[%clk 0:01:04.8]}
26... Bf6 {[%clk 0:00:08.8]} 27. Rxh7 {[%clk 0:00:59.6]} 27... d3 {[%clk
0:00:07.2]} 28. Qf7# {[%clk 0:00:58.6]} 1-0